Cogmind - Beta 15 *** ADVENTURER MODE // 2025.09.02 @ 20:07:02 Player: supraman Result: Destroyed by S-27 Virus with Autogun Performance ------------- Evolutions (1) 500 Regions Visited (6) 1200 Robots Destroyed (31) 155 Value Destroyed (915) 915 Prototype IDs (1) 20 Alien Tech Used (0) 0 Bonus (0) 0 TOTAL SCORE: 2790 Bonus ------- None Cogmind --------- Core Integrity 0/400 Matter 297/300 Energy 159/160 System Corruption 0% Temperature Cool (0) Movement Treading (160) Location -6/Proximity Caves Parts ------- > --- POWER (1) -------- Light Nuclear Core > --- PROPULSION (3) --- Light Treads Carbon-fiber Leg > --- UTILITY (3) ------ Large Storage Unit Advanced Weight Redist. System > --- WEAPON (2) ------- Light Assault Rifle > --- INVENTORY (15) --- Ion Engine Medium Treads Improved Sensor Array Improved Sensor Array Faulty Experimental Sensor Array Particle Cannon Mining Laser Peak State ------------ > --- POWER ------------ Ion Engine > --- PROPULSION ------- Aluminum Leg Aluminum Leg Carbon-fiber Leg > --- UTILITY ---------- Improved Heat Sink Large Storage Unit Seismic Detector > --- WEAPON ----------- Medium Laser Particle Cannon > --- INVENTORY -------- Ion Engine Light Ion Engine Light Treads Light Treads Aluminum Leg Carbon-fiber Leg Advanced Weight Redist. System Improved Sensor Array Improved Sensor Array Experimental Sensor Array Medium Laser Improved Medium Laser Light Assault Rifle Heavy Assault Rifle Mining Laser [Rating: 17] Favorites ----------- Power Ion Engine Engine Ion Engine Power Core Light Nuclear Core Propulsion Aluminum Leg Treads Light Treads Leg Aluminum Leg Utility Large Storage Unit Device Seismic Detector Storage Large Storage Unit Weapon Medium Laser Energy Gun Medium Laser Energy Cannon Particle Cannon Ballistic Gun Heavy Assault Rifle Special Weapon Mining Laser Build | -11 -10 -10 -9 -9 -7 -6 ------- Run | Yrd Mat Min Mat Min Zio Pro Slots Evolved 2 | . . . 2 . . . Power . | . . . . . . . Propulsion 1 | . . . 1 . . . Utility 1 | . . . 1 . . . Weapon . | . . . . . . . Parts Attached 28 | 8 1 1 6 2 . 10 Power 4 | 1 . 1 . . . 2 Engine 3 | 1 . 1 . . . 1 Core 1 | . . . . . . 1 Reactor . | . . . . . . . Propulsion 9 | 3 . . 2 1 . 3 Treads 2 | 1 . . . . . 1 Leg 7 | 2 . . 2 1 . 2 Wheel . | . . . . . . . Hover . | . . . . . . . Flight . | . . . . . . . Utility 6 | 2 . . 3 . . 1 Device 3 | 1 . . 1 . . 1 Storage 3 | 1 . . 2 . . . Processor . | . . . . . . . Hackware . | . . . . . . . Protection . | . . . . . . . Artifact . | . . . . . . . Weapon 9 | 2 1 . 1 1 . 4 Energy Gun 5 | 1 1 . . . . 3 Energy Cannon 1 | . . . . 1 . . Ballistic Gun 2 | 1 . . . . . 1 Ballistic Cannon . | . . . . . . . Launcher . | . . . . . . . Special Weapon 1 | . . . 1 . . . Impact Weapon . | . . . . . . . Slashing Weapon . | . . . . . . . Piercing Weapon . | . . . . . . . Special Melee Weapon . | . . . . . . . Unidentified Prototypes 1 | . . . . . . 1 Parts Lost 14 | . . . . . . 14 Power 2 | . . . . . . 2 Propulsion 5 | . . . . . . 5 Utility 2 | . . . . . . 2 Weapon 5 | . . . . . . 5 Highest Loss Streak 5 | . . . . . . 5 To Critical Strikes . | . . . . . . . Average Backups 11 | 2 4 5 8 14 15 11 Power 1 | . 1 1 2 2 2 1 Propulsion 2 | 1 2 2 2 3 3 1 Utility 3 | . . 1 . 3 4 3 Weapon 4 | . 1 1 3 5 6 4 Tool/Special . | . . . . . . . Unused Backups 5 | . . . . 1 . 4 Power . | . . . . . . . Propulsion 2 | . . . . 1 . 1 Utility 3 | . . . . . . 3 Weapon . | . . . . . . . Tool/Special . | . . . . . . . Average Slot Usage (%) 90 | . 100 100 99 100 100 78 Engine 9 | . 14 14 11 11 11 6 Core 1 | . . . . . . 3 Treads 2 | . . . . . . 5 Leg 26 | . 28 28 33 33 33 20 Device 16 | . 14 14 16 22 22 11 Storage 11 | . 14 14 15 11 11 11 Energy Gun 10 | . 14 14 11 11 11 10 Energy Cannon 4 | . . . . 9 11 1 Ballistic Gun 4 | . 14 14 . . . 7 Peak Build Rating 17 | 7 7 7 15 17 17 17 Average Rating 14 | 5 7 7 11 16 17 15 On Entrance 10 | . 7 7 7 15 17 17 Naked Turns . | . . . . . . . Heaviest Build 33 | 14 14 14 30 33 33 33 Greatest Support 49 | 20 20 20 35 35 35 49 Greatest Overweight (x) 1 | 1 . . . . . 1 Average Overweight (x) . | . . . . . . . Largest Inventory Capacity 15 | 8 8 8 15 15 15 15 Average Capacity 13 | 7 8 8 10 15 15 15 Most Carried 15 | 4 5 8 13 15 15 15 Average Carried 11 | 2 4 5 8 14 15 11 Final Capacity 15 | 8 8 8 15 15 15 15 Final Carried 15 | 4 5 8 13 15 15 7 Class Distribution -------------------- 60% | Mutant 39% | Scavenger-Mutant Dominant Class ---------------- Mutant | -10/Materials Mutant | -10/Mines Mutant | -9/Materials Scavenger-Mutant | -9/Mines Scavenger-Mutant | -7/Zion Mutant | -6/Proximity Caves Resources | -11 -10 -10 -9 -9 -7 -6 ----------- Run | Yrd Mat Min Mat Min Zio Pro Matter Collected 692 | 274 37 110 40 30 . 201 Remotely . | . . . . . . . Salvage Created 1003 | 59 163 . . 53 . 728 Parts 44 | 12 5 . . 1 . 26 Haulers Intercepted . | . . . . . . . Recyclers Shooed . | . . . . . . . Parts Field Recycled . | . . . . . . . Retrieved Matter . | . . . . . . . Parts Self-Destructed 24 | . . . . . . 24 Prevented 1 | . . . . . . 1 Kills | -11 -10 -10 -9 -9 -7 -6 ------- Run | Yrd Mat Min Mat Min Zio Pro Combat Hostiles Destroyed 27 | . 4 . 1 2 . 20 Guns 18 | . 4 . . 1 . 13 Cannons 4 | . . . . 1 . 3 Classes Destroyed 7 | 1 3 . 1 . . 2 Tunneler 3 | 3 . . . . . . Drone 2 | . . . . . . 2 Watcher 1 | . 1 . . . . . Swarmer 13 | . 2 . . . . 11 Grunt 9 | . 2 . . 2 . 5 Brawler 1 | . . . . . . 1 Sentry 2 | . . . 1 . . 1 Best Kill Streak 5 | 3 5 . 1 2 . 5 Combat Bots Only 5 | . 4 . 1 2 . 5 Max Kills in Single Turn 1 | 1 1 . 1 1 . 1 Gunslinging . | . . . . . . . Exploded . | . . . . . . . Melee . | . . . . . . . Uniques/NPCs Destroyed . | . . . . . . . Combat | -11 -10 -10 -9 -9 -7 -6 -------- Run | Yrd Mat Min Mat Min Zio Pro Hostile Shots Fired 285 | . 54 . 10 6 . 215 Missed 74 | . 19 . 2 1 . 52 Hits 211 | . 35 . 8 5 . 163 Projectile 211 | . 35 . 8 5 . 163 Critical Strikes 8 | . 1 . . 1 . 6 Damage Taken 2188 | . 233 . 90 62 . 1803 Core 445 | . 33 . 13 14 . 385 Absorbed by Shields . | . . . . . . . Ignored by Resistances 647 | . 80 . 25 18 . 524 Core Remaining (%) 93 | 100 . 86 . . . . Volleys Fired 110 | 3 18 . 8 5 . 76 Largest 2 | 2 2 . 2 2 . 2 Hottest 150 | 60 60 . 150 150 . 118 Shots Fired 184 | 6 36 . 12 6 . 124 Gun 147 | 6 36 . 4 5 . 96 Cannon 28 | . . . . . . 28 Launcher . | . . . . . . . Special 9 | . . . 8 1 . . Kinetic 54 | 3 18 . . . . 33 Thermal 106 | . . . 12 6 . 88 Explosive . | . . . . . . . Electromagnetic 24 | 3 18 . . . . 3 Robot Hit Streak 28 | 3 7 . 9 5 . 28 Robot Miss Streak 2 | . 2 . . 1 . 2 Penetration Max . | . . . . . . . Secondary Targets 4 | . 2 . . . . 2 Max Gunslinging Chain 1 | . 1 . . . . 1 Shots Hit Robots 149 | 3 28 . 8 5 . 105 Core Hits 55 | 3 9 . 1 4 . 38 Critical Kills . | . . . . . . . Critical Parts Destroyed . | . . . . . . . Critical Strikes 6 | . . . 1 . . 5 Burn 6 | . . . 1 . . 5 Melee Attacks . | . . . . . . . Impact . | . . . . . . . Slashing . | . . . . . . . Piercing . | . . . . . . . Sneak Attacks . | . . . . . . . Combat Hostiles . | . . . . . . . Follow-up Attacks . | . . . . . . . Damage Inflicted 2197 | 42 379 . 146 74 . 1556 Guns 1496 | 42 309 . 50 50 . 1045 Cannons 511 | . . . . . . 511 Explosions 70 | . 70 . . . . . Melee . | . . . . . . . Ramming . | . . . . . . . Kinetic 411 | . 112 . . . . 299 Thermal 1519 | . 70 . 146 74 . 1229 Explosive . | . . . . . . . Electromagnetic 267 | 42 197 . . . . 28 Impact . | . . . . . . . Slashing . | . . . . . . . Piercing . | . . . . . . . Highest Corruption . | . . . . . . . Average Corruption . | . . . . . . . Corruption Purged . | . . . . . . . Corruption Blocked . | . . . . . . . Overload Shots . | . . . . . . . Overflow Damage 12 | . 12 . . . . . Projectiles . | . . . . . . . Explosions 12 | . 12 . . . . . Melee . | . . . . . . . Knockbacks . | . . . . . . . Impact . | . . . . . . . Kinetic . | . . . . . . . Secondary . | . . . . . . . Self-Inflicted Damage . | . . . . . . . Shots . | . . . . . . . Rammed . | . . . . . . . Targets Rammed . | . . . . . . . Kicked . | . . . . . . . Crushed . | . . . . . . . Highest Temperature 498 | 20 152 . 156 20 . 498 Average Temperature 108 | 13 77 . 70 11 . 126 Received Heat Transfer 888 | . 90 . 36 63 . 699 Effects 1 | . . . . . . 1 Energy Bleed 1 | . . . . . . 1 Siege Activations . | . . . . . . . Martial Activations . | . . . . . . . Shielding Activations . | . . . . . . . Robots Disrupted . | . . . . . . . Combat Hostiles . | . . . . . . . Robots Corrupted . | . . . . . . . Combat Hostiles . | . . . . . . . Parts Fried 1 | . 1 . . . . . Impact Corruptions . | . . . . . . . Robots Melted 5 | . . . 1 . . 4 Combat Hostiles 5 | . . . 1 . . 4 Parts Melted 12 | . . . 1 . . 11 Heat Transferred 3976 | . 100 . 422 198 . 3256 Parts Sabotaged . | . . . . . . . Parts Stolen . | . . . . . . . Parts Stripped . | . . . . . . . Power Chain Reactions 2 | . 2 . . . . . Alert | -11 -10 -10 -9 -9 -7 -6 ------- Run | Yrd Mat Min Mat Min Zio Pro Maximum Alert Level . | . . . . . . . Low Security (%) 100 | 100 100 100 100 100 . . Level 1 . | . . . . . . . Level 2 . | . . . . . . . Level 3 . | . . . . . . . Level 4 . | . . . . . . . Level 5 . | . . . . . . . High Security . | . . . . . . . Max Security . | . . . . . . . Peak Influence 83 | 10 83 23 30 50 . . Initial 23 | . 2 23 . . . . Average 12 | 1 27 9 4 14 . . Influence Increases 659 | 15 112 . 37 50 . 445 Destroy 0b10 Robot/C 500 | . 80 . 20 40 . 360 Destroy 0b10 Robot/NC 30 | 15 5 . . . . 10 Destroy Leader 72 | . 22 . 10 10 . 30 Successful Hack 4 | . . . 4 . . . Destroy Structure 8 | . 5 . 3 . . . Lose Combat Pursuer 45 | . . . . . . 45 Influence Decreases 659 | 10 44 73 37 50 . 445 Entered New Map 53 | . 3 50 . . . . Time Decay 511 | 10 41 23 37 50 . 350 Lost Part 95 | . . . . . . 95 Squads Dispatched 1 | . . . 1 . . . Investigation 1 | . . . 1 . . . Extermination . | . . . . . . . Reinforcement . | . . . . . . . Assault . | . . . . . . . Garrison . | . . . . . . . Intercept . | . . . . . . . Searches Triggered . | . . . . . . . Construction Impeded . | . . . . . . . Haulers Reinforced . | . . . . . . . Active Scanning Responses . | . . . . . . . Cargo Convoy Interrupts . | . . . . . . . Stealth | -11 -10 -10 -9 -9 -7 -6 --------- Run | Yrd Mat Min Mat Min Zio Pro Distress Signals 1 | . 1 . . . . . Communications Jammed . | . . . . . . . Distress Signals . | . . . . . . . Times Spotted 36 | . 6 . 1 1 . 28 Peak Tracking Total 6 | . 6 . 1 1 . 5 Tactical Retreats 3 | . . . . . . 3 Traps | -11 -10 -10 -9 -9 -7 -6 ------- Run | Yrd Mat Min Mat Min Zio Pro Traps Triggered 1 | . . . 1 . . . Indirectly . | . . . . . . . Trap Hack Attempts . | . . . . . . . Triggered . | . . . . . . . Disarmed . | . . . . . . . Reprogrammed . | . . . . . . . Reused . | . . . . . . . Traps Extracted . | . . . . . . . Installed . | . . . . . . . Triggered . | . . . . . . . Machines | -11 -10 -10 -9 -9 -7 -6 ---------- Run | Yrd Mat Min Mat Min Zio Pro Machines Disabled . | . . . . . . . Max in Single Turn . | . . . . . . . Machines Repaired . | . . . . . . . Machines Dismantled . | . . . . . . . Machines Sabotaged . | . . . . . . . Overloaded Fab Kills . | . . . . . . . Hacking | -11 -10 -10 -9 -9 -7 -6 --------- Run | Yrd Mat Min Mat Min Zio Pro Machines Accessed 2 | . . . 1 . 1 . Terminals 1 | . . . 1 . . . Fabricators . | . . . . . . . Repair Stations . | . . . . . . . Recycling Units . | . . . . . . . Scanalyzers . | . . . . . . . Garrison Access . | . . . . . . . Total Hacks 4 | . . . 2 . 2 . Successful 4 | . . . 2 . 2 . Failed . | . . . . . . . Catastrophic . | . . . . . . . Database Lockouts . | . . . . . . . Manual . | . . . . . . . Terminals 2 | . . . 2 . . . Fabricators . | . . . . . . . Repair Stations . | . . . . . . . Recycling Units . | . . . . . . . Scanalyzers . | . . . . . . . Garrison Access . | . . . . . . . Terminal Hacks 4 | . . . 2 . 2 . Part Schematic 2 | . . . . . 2 . Terminal Index 1 | . . . 1 . . . Surveillance Status 1 | . . . 1 . . . Fabricator Hacks . | . . . . . . . Repair Station Hacks . | . . . . . . . Recycling Unit Hacks . | . . . . . . . Scanalyzer . | . . . . . . . Garrison Access Hacks . | . . . . . . . Unauthorized Hacks . | . . . . . . . Terminals . | . . . . . . . Fabricators . | . . . . . . . Repair Stations . | . . . . . . . Recycling Units . | . . . . . . . Scanalyzers . | . . . . . . . Garrison Access . | . . . . . . . Data Cores Recovered . | . . . . . . . Used . | . . . . . . . Hacking Detections 1 | . . . 1 . . . Full Trace Events . | . . . . . . . Feedback Events . | . . . . . . . Feedback Blocked . | . . . . . . . Robot Schematics Acquired 3 | . . . . . 3 . Robots Built . | . . . . . . . Authchips . | . . . . . . . Time . | . . . . . . . Total Robot Build Rating . | . . . . . . . Part Schematics Acquired 16 | . . . . . 16 . Parts Built . | . . . . . . . Authchips . | . . . . . . . Time . | . . . . . . . Total Part Build Rating . | . . . . . . . Parts Repaired . | . . . . . . . Time . | . . . . . . . Parts Recycled . | . . . . . . . Recycled Matter . | . . . . . . . Retrieved Matter . | . . . . . . . Retrieved Components . | . . . . . . . Parts Scanalyzed . | . . . . . . . Part Schematics Acquired . | . . . . . . . Parts Damaged . | . . . . . . . Bothacking | -11 -10 -10 -9 -9 -7 -6 ------------ Run | Yrd Mat Min Mat Min Zio Pro Used RIF Installer . | . . . . . . . Robots Hacked . | . . . . . . . Non-combat . | . . . . . . . Combat . | . . . . . . . Robot Hacks Applied . | . . . . . . . Relay Couplers Released . | . . . . . . . Fabnet Peak Effective % . | . . . . . . . Robots Rewired . | . . . . . . . Allies Hacked . | . . . . . . . Hacks Repelled . | . . . . . . . Allies | -11 -10 -10 -9 -9 -7 -6 -------- Run | Yrd Mat Min Mat Min Zio Pro Total Allies 1 | . . 1 . . . . Largest Group 1 | . . 1 1 . . . Highest-Rated Group 31 | . . 31 31 . . . Highest-Rated Ally 31 | . . 31 31 . . . Total Orders . | . . . . . . . Ally Attacks 2 | . . . 2 . . . Total Damage . | . . . . . . . Kills . | . . . . . . . Allies Corrupted . | . . . . . . . Allies Melted . | . . . . . . . Intel | -11 -10 -10 -9 -9 -7 -6 ------- Run | Yrd Mat Min Mat Min Zio Pro Active Infowar (turns) 2622 | 10 157 80 246 183 983 963 Seismic 2622 | 10 157 80 246 183 983 963 Robot Analysis Total . | . . . . . . . Derelict Logs Recovered 7 | . . 2 . 1 2 2 Drone Launches . | . . . . . . . Drone Recoveries . | . . . . . . . Exploration | -11 -10 -10 -9 -9 -7 -6 ------------- Run | Yrd Mat Min Mat Min Zio Pro Turns Passed 3115 | 77 157 80 246 183 983 1389 Spaces Moved 2085 | 48 86 63 141 138 819 790 Core 7 | 7 . . . . . . Treads 220 | . . . . . . 220 Legs 1858 | 41 86 63 141 138 819 570 Wheels . | . . . . . . . Hover . | . . . . . . . Flight . | . . . . . . . Fastest Speed 50 | 50 120 120 120 120 120 120 Average Speed 127 | 111 120 120 120 120 120 140 Slowest Speed 240 | 120 120 120 120 120 120 240 Overloaded Moves . | . . . . . . . Propulsion Burnouts . | . . . . . . . Robots Hopped . | . . . . . . . Potential Cave-ins . | . . . . . . . Cave-ins Triggered . | . . . . . . . Exploration Rate (%) 38 | 4 21 24 19 35 77 88 Regions Visited 6 Branch Regions 4 Pre-discovered Areas 5 | . . 2 . 1 2 . Known Exits Taken 1 | . . . . . 1 . Unknown Exits Taken 5 | 1 1 1 1 1 . . Scrap Searched 6 | . . 1 . 1 2 2 Spaces Dug 3 | . . . 3 . . . Terrain Destroyed 8 | . 5 . 3 . . . Melee . | . . . . . . . Projectile 3 | . . . 3 . . . AOE 5 | . 5 . . . . . Terrain Rammed . | . . . . . . . Walls Destroyed . | . . . . . . . Machines Disabled . | . . . . . . . Actions | -11 -10 -10 -9 -9 -7 -6 --------- Run | Yrd Mat Min Mat Min Zio Pro Total 2336 | 62 107 67 190 147 820 943 Wait 85 | . 2 . 26 . . 57 Move 2079 | 47 85 62 140 137 818 790 Hop . | . . . . . . . Pick Up 19 | 3 1 3 7 2 1 2 Fast Attach 10 | 8 . . 1 . . 1 Attach 13 | . . . 2 . . 11 Detach 2 | 1 . . . . . 1 Swap 12 | . 1 1 3 2 . 5 Drop 6 | . . 1 3 1 1 . Fire 110 | 3 18 . 8 5 . 76 Melee . | . . . . . . . Ram . | . . . . . . . Kick . | . . . . . . . Crush . | . . . . . . . Escape Stasis . | . . . . . . . Rewire . | . . . . . . . Trap . | . . . . . . . Miscellaneous . | . . . . . . . Route ------- -11/Scrapyard -10/Materials -10/Mines -9/Materials -9/Mines -7/Zion (discovered 2 exits: Dee / *Pro) -6/Proximity Caves History --------- Turn | Location | Event 8 | -11/Scrapyard | Discovered new exit (range 16) 78 | -11/Scrapyard | Entered Materials 209 | -10/Materials | Discovered new exit (range 13) 235 | -10/Materials | Entered Mines 249 | -10/Mines | Met a Derelict bent on vengeance 267 | -10/Mines | Learned location of Zion (-7) 287 | -10/Mines | Discovered new exit (range 15) 294 | -10/Mines | Found DCF Scrap (13 items) 305 | -10/Mines | Received a Mining Laser from a helpful Derelict 315 | -10/Mines | Entered Materials 315 | -9/Materials | Accompanied by 1 ally 315 | -9/Materials | Evolved 2 slots: Propulsion x1, Utility x1 344 | -9/Materials | Build established: Mutant 489 | -9/Materials | Discovered new exit (range 16) 561 | -9/Materials | Entered Mines 663 | -9/Mines | Learned location of Storage (-7) 713 | -9/Mines | Found a damaged Exp. Sensor Array with a note attached 715 | -9/Mines | Found Prototype Device 726 | -9/Mines | A Derelict revealed a hidden shortcut to a safe place 744 | -9/Mines | Entered Zion 881 | -7/Zion | Build established: Scavenger-Mutant 1256 | -7/Zion | Given A8's code to call for help 1277 | -7/Zion | Learned location of Warlord (-4) 1320 | -7/Zion | Learned location of Data Miner (-6) 1327 | -7/Zion | Identified exit to Proximity Caves 1331 | -7/Zion | Identified exit to Deep Caves 1727 | -7/Zion | Entered Proximity Caves 1998 | -6/Proximity Caves | Spotter reported a threat 2057 | -6/Proximity Caves | Learned 4 Factory zone layouts 2071 | -6/Proximity Caves | Spotter reported a threat 2098 | -6/Proximity Caves | Build established: Mutant 2166 | -6/Proximity Caves | Spotted B-75 Beast 2389 | -6/Proximity Caves | Spotter reported a threat 2548 | -6/Proximity Caves | Spotter reported a threat 2650 | -6/Proximity Caves | Attracted the attention of an 0b10 checkpoint 2670 | -6/Proximity Caves | Core integrity fell below 50% 2691 | -6/Proximity Caves | Core integrity fell below 20% 2727 | -6/Proximity Caves | Lost 5 parts (1n1u3w) 2794 | -6/Proximity Caves | Spotter reported a threat 3116 | -6/Proximity Caves | Destroyed by S-27 Virus with Autogun Last Messages --------------- Acquired Med. Treads. Lgt. Treads destroyed. S-27 Virus destroyed. S-27 Virus suffers critical hit (Burn). VTOL Module melted. Lgt. Nuclear Core melted. S-27 Virus destroyed. Autogun fries itself beyond repair. VTOL Module fries itself beyond repair. S-27 Virus suffers critical hit (Burn). Destroyed VTOL Module. S-27 Virus overheating. S-27 Virus heat spikes uncontrollably. Autogun fries itself beyond repair. S-27 Virus overheating. S-27 Virus heat damages Lgt. Nuclear Core, Autogun. S-27 Virus overheating. S-27 Virus destroyed. Acquired 20 matter. Med. Laser destroyed. Map ----- +----------------------------------------------------+ | ??# ##? ## | | ?## #?? ## | | ## ???# ###? | | # """" """" ?? ???? ###??? | | # """" ""????? #????? ###????? | | # """" "??????#??????? ##??????? | | # """" "???????####??? ## ####??####??? | | # """" ""????? ## #?##??## ##?? | | ## """" """" ? ### ### ### | | ?# ?????# ## # | | ?#### """" """" ???????## ### ## | | ????# """" ""????????????####???# ### ## | | ????# """" """????????#?????????# ## ### | | ????# """" """????????# #???????# ### | | ????# """" """" #??## ####???# ## | | ????# """" """" #??# ##### ### ## | | ????# #???# #### #? | | #???# #????# ###?# ## | | ##?# #????## #### ##?## # | | #?## ##### #######?## #?## ### | | ##### #????? ##??# #### ### | | ## #???###?#???# % ### # | | ##### ##????# #?#### | | !% ##??## ### ##???? | | ### ! #?## s### ####? | | #??## #### ### @#?## ## ## | | ????## ##??## #??####### " # | | ?????# ####### # ###?????#####"%" # | | #????# #?## # #??????## ### " # | | ##### #??## #% #????### # | | ? ##### #???## ## %###### # | | ?# #??### ###### ### ## ## | | ?# #??# # #?# ### ## | | ?# #### # ########?#######! ##?# ### | | ?# #??????????????#% ##??# #?### # | | ## #?????????????# #???# ##??# # | | # ### ##????????????# #???# ### # | | ######?####???????# #??# ####### | | #????## ##?????# #??# #????? | | ##???## ##????# #??# #????? | | ### ###### ####?# ??# ## #????? | | #?# #### #####?# %### #????? | | #?# & ##?????# #?# #####? | | ##?# ####+ # #???????# #?# #? | | ???# " "" "# ###&#????????#% ### #?? | | ???# # % ""# #??##?????????#%%## #??? | | ???# # T # #???????####??# #??? | | ##?# # " # ##?????## ##?# # #### | | ### # # ####### #?#### # | | # ## ######## | +----------------------------------------------------+ Best States ------------- Heat Dissipation 42 Energy Generation 14 Energy Capacity 250 Matter Stores 380 Matter Capacity 400 Sight Range 16 Terrain Scan Density 10 Additional Mass Support 9 Resistance: KI 20 Resistance: TH 20 Resistance: EX 20 Resistance: EM 20 Resistance: I 20 Resistance: S 20 Resistance: P 20 Evasion (%) 55 Recoil Reduction 2 Offensive Hacking 10 Item Schematics ----------------- Imp. Cooling System | -7/Zion | Archive Force Field | -7/Zion | Archive Imp. Shield Generator | -7/Zion | Archive Phase Cannon | -7/Zion | Archive System Restoration Module | -7/Zion | Archive Magnetic Acceleration Cannon | -7/Zion | Archive Imp. Field Recycling Unit | -7/Zion | Archive Lrn. Proton Cannon | -7/Zion | Archive Imp. Transmission Jammer | -7/Zion | Archive Imp. Trap Extractor | -7/Zion | Archive Hvy. Pick | -7/Zion | Archive Imp. System Restoration Module | -7/Zion | Archive Plasma Cannon | -7/Zion | Archive Hpw. Shock Rifle | -7/Zion | Archive Hvy. Riot Gun | -7/Zion | Free Ripper | -7/Zion | Free Robot Schematics ------------------ X-62 Marksman | -7/Zion | Archive A-02 Transporter | -7/Zion | Archive L-41 Fighter | -7/Zion | Archive Fabricated ------------ Nothing Repaired ---------- Nothing Alien Tech Used ----------------- None Achievements -------------- None Challenges ------------ None Game ------ Seed GammaAlloyGreatsword Manual? 0 Play Time 00:43:12 Cumulative 36.0 hours Start 2025.09.02 @ 19:22:32 End 2025.09.02 @ 20:07:02 Sessions 1 Manual Loads 0 Difficulty Adventurer Special Mode None Game No. 17 Rogue 15 Adventurer 2 Explorer 0 Win Type - Total 0 Types 0/0/0/0/0/0/0/0/0/0 Lore% 13 Gallery% 23 Achievement% 19 Wizard Run 0 Options --------- Layout 0 ASCII 0 Keyboard 0 Movement Mouse Keybinds 0 Fullscreen 1 Font 24/Smallcaps Map View 76x50 Zoom Use 0% Tactical HUD 0 Map Filters NONE Filters NONE Steam 1 RUN: cde7d79e-f6d7-413e-b183-6698af93c71f